bitfinex/quotes_BTCUSD_20250513
["timestamp","ask_amount","ask_price","bid_price","bid_amount"]
[1747105609463,0.01180796,101950.0,101940.0,1.69352516]
[1747105609887,0.02161611,101950.0,101940.0,1.69352516]
[1747105610312,0.002,101950.0,101940.0,1.69352516]
[1747105610516,0.0216162,101950.0,101940.0,1.69352516]
[1747105610732,0.02161611,101950.0,101940.0,1.69352516]
[1747105610942,0.03142445,101950.0,101940.0,1.59767086]
[1747105611679,0.22759904,101950.0,101940.0,1.09850172]
[1747105611900,0.22760009,101950.0,101940.0,0.99055009]
[1747105612121,0.21779175,101950.0,101940.0,0.35214657]
[1747105612342,0.21779175,101950.0,101940.0,0.01214657]
[1747105612553,0.24959175,101950.0,101940.0,0.01214657]
[1747105612754,0.24959175,101950.0,101940.0,0.02668742]
[1747105612958,0.24959175,101950.0,101940.0,0.01214657]
[1747105613839,0.24959175,101950.0,101940.0,0.02668742]
[1747105615764,0.59937505,101950.0,101940.0,0.01214657]
[1747105617497,0.34544605,101950.0,101940.0,0.01214657]
[1747105617686,0.34444605,101950.0,101940.0,0.00614657]
[1747105617901,0.34344605,101950.0,101940.0,0.00014657]
[1747105618106,0.34444605,101950.0,101940.0,0.00014657]
[1747105620555,0.59837505,101950.0,101940.0,0.00014657]
[1747105621874,1.14185505,101950.0,101940.0,0.00014657]
[1747105623301,1.14169575,101950.0,101940.0,0.00014657]
[1747105624402,0.54776675,101950.0,101940.0,0.00014657]
[1747105625071,0.42011245,101950.0,101940.0,0.00014657]
[1747105625693,0.21663245,101950.0,101940.0,0.02998742]
[1747105625892,0.21663245,101950.0,101940.0,0.01468742]
[1747105627601,0.50296145,101950.0,101940.0,0.01468742]
[1747105629586,0.24903245,101950.0,101940.0,0.01468742]
[1747105629824,0.50296145,101950.0,101940.0,0.01468742]
[1747105630429,0.23303245,101950.0,101940.0,0.01468742]
[1747105631313,0.58281575,101950.0,101940.0,0.00014657]
[1747105631523,0.59801575,101950.0,101940.0,0.00014657]
[1747105632390,0.93801575,101950.0,101940.0,0.00014657]
[1747105634011,0.65248675,101950.0,101940.0,0.00014657]
[1747105636421,0.65248675,101950.0,101940.0,0.01674657]
[1747105637225,0.65248675,101950.0,101940.0,0.00014657]
[1747105637753,0.65248675,101950.0,101940.0,0.03048742]
[1747105637754,0.21663245,101950.0,101940.0,0.03048742]
[1747105637960,0.21663245,101950.0,101940.0,0.04658742]
[1747105638167,0.21663245,101950.0,101940.0,0.03048742]
[1747105639561,0.47056145,101950.0,101940.0,0.03048742]
[1747105640501,0.45846145,101950.0,101940.0,0.03048742]
[1747105641418,0.58631575,101950.0,101940.0,0.00014657]
[1747105644328,0.55431575,101950.0,101940.0,0.00014657]
[1747105646053,0.58591575,101950.0,101940.0,0.00014657]
[1747105648020,0.95345482,101950.0,101940.0,0.00014657]
[1747105648999,1.20738382,101950.0,101940.0,0.00014657]
[1747105649209,1.41094382,101950.0,101940.0,0.00014657]
[1747105650200,1.15601482,101950.0,101940.0,0.00014657]
[1747105650374,1.16401482,101950.0,101940.0,0.00114657]
[1747105650594,1.17101482,101950.0,101940.0,0.00214657]
[1747105653213,1.37369482,101950.0,101940.0,0.00214657]
[1747105656165,1.34209482,101950.0,101940.0,0.00214657]
[1747105656338,1.35719482,101950.0,101940.0,0.00214657]
[1747105656714,1.34209482,101950.0,101940.0,0.00214657]
[1747105656966,0.68192582,101950.0,101940.0,0.00214657]
[1747105657211,0.68192582,101950.0,101940.0,0.01784657]
[1747105657212,1.13873482,101950.0,101940.0,0.01784657]
[1747105658318,1.13873482,101950.0,101940.0,0.03394657]
[1747105659590,1.13873482,101950.0,101940.0,0.04848742]
[1747105664086,1.11119575,101950.0,101940.0,0.04848742]
[1747105665362,1.11119575,101950.0,101940.0,0.04832812]
[1747105665515,1.13874496,101950.0,101940.0,0.04832812]
[1747105672480,1.13874496,101950.0,101940.0,0.01652812]
[1747105672938,1.16964496,101950.0,101940.0,0.00198727]
[1747105673148,1.42357396,101950.0,101940.0,0.00198727]
[1747105674021,1.52187866,101950.0,101940.0,0.00198727]
[1747105674689,1.44357396,101950.0,101940.0,0.00198727]
[1747105681406,0.21585488,101920.0,101910.0,0.01454085]
[1747105681605,0.21585488,101920.0,101910.0,0.03084085]
[1747105682496,0.46978388,101920.0,101910.0,0.03584085]
[1747105682709,0.47078388,101920.0,101910.0,0.03584085]
[1747105682922,0.47178388,101920.0,101910.0,0.04084085]
[1747105683774,0.47178388,101920.0,101910.0,0.0263]
[1747105683775,0.91726554,101920.0,101910.0,0.0263]
[1747105684609,0.91626554,101920.0,101910.0,0.0213]
[1747105684823,0.91726554,101920.0,101910.0,0.0223]
[1747105685263,0.91726554,101920.0,101910.0,0.001]
[1747105685264,0.93246554,101920.0,101910.0,0.001]
[1747105685476,0.93346554,101920.0,101910.0,0.002]
[1747105685753,0.96365837,101920.0,101910.0,0.002]
[1747105686850,1.16509837,101920.0,101910.0,0.002]
[1747105688013,1.14999837,101920.0,101910.0,0.002]
[1747105688674,1.14999837,101920.0,101910.0,0.0185]
[1747105689987,1.13379837,101920.0,101910.0,0.0185]
[1747105690963,1.13323837,101920.0,101910.0,0.0339]
[1747105691919,1.13323837,101920.0,101910.0,0.0185]
[1747105692640,1.16463837,101920.0,101910.0,0.002]
[1747105692869,1.14953837,101920.0,101910.0,0.002]
[1747105694110,1.13323837,101920.0,101910.0,0.002]
[1747105694332,1.13323837,101920.0,101910.0,0.0172]
[1747105696588,0.87930937,101920.0,101910.0,0.0325]
[1747105696820,1.13323837,101920.0,101910.0,0.0325]
[1747105697028,0.32880201,101920.0,101910.0,0.0325]
[1747105697171,0.32880201,101920.0,101910.0,0.04704085]
[1747105697341,0.33864786,101920.0,101910.0,0.04704085]
[1747105697754,0.23294771,101920.0,101910.0,0.04704085]
[1747105698154,0.48687671,101920.0,101910.0,0.04704085]
[1747105701159,0.49679409,101920.0,101910.0,0.04704085]
[1747105702550,0.23294771,101920.0,101910.0,0.04704085]
[1747105702757,0.48687671,101920.0,101910.0,0.04704085]
[1747105703559,0.23294771,101920.0,101910.0,0.04704085]
[1747105703778,0.23294771,101920.0,101910.0,0.25310501]
[1747105703994,0.20804375,101920.0,101910.0,0.04704085]
[1747105704204,0.19823233,101920.0,101910.0,0.04704085]
[1747105704722,0.19613728,101970.0,101960.0,0.03104085]
[1747105704934,0.19616038,101980.0,101970.0,0.0311]
[1747105704935,0.22553363,101980.0,101970.0,0.0311]
[1747105705160,0.22553372,101980.0,101970.0,0.04564085]
[1747105705400,0.21587422,101980.0,101970.0,0.24177696]
[1747105705629,0.22567996,101980.0,101970.0,0.24177696]
[1747105705845,0.21587441,101980.0,101970.0,0.24177696]
[1747105706705,0.21587441,101980.0,101970.0,0.25158376]
[1747105706941,0.21587441,101980.0,101970.0,0.26139046]
[1747105707177,0.00014614,101980.0,101970.0,0.33065634]
[1747105707397,0.00014614,101980.0,101970.0,1.22183964]
[1747105707606,0.00014614,101980.0,101970.0,0.96791064]
[1747105707813,0.03936757,101980.0,101970.0,0.9581046]
[1747105708025,0.00995111,101980.0,101970.0,0.92806382]
[1747105708804,0.00995111,101980.0,101970.0,0.93406382]
[1747105709012,0.02075628,101980.0,101970.0,0.93406382]
[1747105710100,0.02175628,101980.0,101970.0,0.93906382]
[1747105710300,0.02175628,101980.0,101970.0,1.03491812]
[1747105711079,0.02175618,101980.0,101970.0,1.03491812]
[1747105711283,0.01195111,101980.0,101970.0,1.03491812]
[1747105711494,0.03156173,101980.0,101970.0,1.03491754]
[1747105711723,0.01195111,101980.0,101970.0,1.03491754]
[1747105712126,0.02175637,101980.0,101970.0,1.03491754]
[1747105712324,0.01195111,101980.0,101970.0,1.03491754]
[1747105713313,0.02175637,101980.0,101970.0,1.03491754]
[1747105713709,0.01195111,101980.0,101970.0,1.03491754]
[1747105713908,0.02175628,101980.0,101970.0,1.03491754]
[1747105714123,0.01195111,101980.0,101970.0,1.03491754]
[1747105714331,0.00214614,101980.0,101970.0,1.03491754]
[1747105714988,0.00214614,101980.0,101970.0,1.28884654]
[1747105715859,0.00214614,101980.0,101970.0,1.94277554]
[1747105717210,0.01960313,102020.0,102010.0,0.03064085]
[1747105717424,0.02955085,102020.0,102010.0,0.2936253]
[1747105717649,0.02955085,102020.0,102010.0,0.31982758]
[1747105717854,0.00014649,102020.0,102010.0,1.00961088]
[1747105718280,0.00994762,102020.0,102010.0,1.00961088]
[1747105718493,0.00114649,102020.0,102010.0,1.20909088]
[1747105719350,0.00114649,102020.0,102010.0,1.60909088]
[1747105720030,0.00114649,102020.0,102010.0,1.61109088]
[1747105720250,0.00114649,102020.0,102010.0,1.60909088]
[1747105720685,0.00014649,102020.0,102010.0,1.61309088]
[1747105720897,0.00014649,102020.0,102010.0,1.61409088]
[1747105721304,0.00014649,102020.0,102010.0,1.36016188]
[1747105721546,0.01974894,102020.0,102010.0,1.36016188]
[1747105721762,0.00994762,102020.0,102010.0,1.36016188]
[1747105722382,0.01974885,102020.0,102010.0,1.62396671]
[1747105722620,0.02955036,102020.0,102010.0,1.37003771]
[1747105723061,0.01974885,102020.0,102010.0,1.37003771]
[1747105723274,0.02955027,102020.0,102010.0,1.37003771]
[1747105723696,0.02955027,102020.0,102010.0,1.62396671]
[1747105723927,0.02955017,102020.0,102010.0,1.62396671]
[1747105724749,0.02955017,102020.0,102010.0,1.37003771]
[1747105725306,0.04915349,102020.0,102010.0,1.37003771]
[1747105725511,0.04915416,102020.0,102010.0,1.37003771]
[1747105725748,0.01974904,102020.0,102010.0,1.37003771]
[1747105725941,0.00994772,102020.0,102010.0,1.37003771]
[1747105726138,0.00014649,102020.0,102010.0,1.62396671]
[1747105729930,0.03935255,102020.0,102010.0,0.70682626]
[1747105730149,0.03935255,102020.0,102010.0,0.71662854]
[1747105730449,0.22559189,102020.0,102010.0,0.57683799]
[1747105730678,0.0099482,102020.0,102010.0,0.6062456]
[1747105730922,0.0099482,102020.0,102010.0,0.6062458]
[1747105730923,0.02955161,102020.0,102010.0,0.6062458]
[1747105731157,0.02955161,102020.0,102010.0,0.62078665]
[1747105731395,0.02955161,102020.0,102010.0,0.63058903]
[1747105731626,0.02955036,102020.0,102010.0,1.09152595]
[1747105732643,0.02955036,102020.0,102010.0,0.83759695]
[1747105733799,0.03935207,102020.0,102010.0,0.83759695]
[1747105734018,0.04915473,102020.0,102010.0,0.88229695]
[1747105734241,0.24519472,102020.0,102010.0,0.43564085]
[1747105734434,0.21579027,102020.0,102010.0,0.41954085]
[1747105734703,0.21579027,102020.0,102010.0,0.405]
[1747105734891,0.21579027,102020.0,102010.0,0.005]
[1747105735329,0.21539818,102020.0,102010.0,0.005]
[1747105735552,0.21539818,102020.0,102010.0,0.23520568]
[1747105735720,0.21539818,102020.0,102010.0,0.34086255]
[1747105735933,0.21539818,102020.0,102010.0,0.33686255]
[1747105736137,0.21539818,102020.0,102010.0,0.32705998]
[1747105736278,0.20684198,102020.0,102010.0,0.33105998]
[1747105736480,0.20684198,102020.0,102010.0,0.34086255]
[1747105736681,0.20684198,102020.0,102010.0,0.33986255]
[1747105737099,0.20784198,102020.0,102010.0,0.33986255]
[1747105738191,0.20784198,102020.0,102010.0,0.33005998]
[1747105738632,0.21698209,102020.0,102010.0,0.33005998]
[1747105740130,0.21698209,102020.0,102010.0,0.33986255]
[1747105740287,0.21698209,102020.0,102010.0,0.35526255]
[1747105741158,0.21698209,102020.0,102010.0,0.22440301]
[1747105741478,0.4767091,102020.0,102010.0,0.01854085]
[1747105741629,0.4767091,102020.0,102010.0,0.004]
[1747105741630,0.51971765,102020.0,102010.0,0.004]
[1747105741857,0.51057754,102020.0,102010.0,0.004]
[1747105742220,0.25664854,102020.0,102010.0,0.004]
[1747105742902,0.60643184,102020.0,102010.0,0.004]
[1747105743093,0.80443184,102020.0,102010.0,0.004]
[1747105743535,0.45464854,102020.0,102010.0,0.004]
[1747105743759,0.43904854,102020.0,102010.0,0.004]
[1747105744459,0.44819583,102020.0,102010.0,0.004]
[1747105745452,0.44819583,102020.0,102010.0,0.01854085]
[1747105745684,0.46379583,102020.0,102010.0,0.01854085]
[1747105746375,0.45464854,102020.0,102010.0,0.01854085]
[1747105747030,0.25664854,102020.0,102010.0,0.01854085]
[1747105747646,0.26645034,102020.0,102010.0,0.01854085]
[1747105750731,0.61623364,102020.0,102010.0,0.004]
[1747105751094,0.95623364,102020.0,102010.0,0.004]
[1747105752079,0.95623364,102020.0,101980.0,0.0154]
[1747105752080,0.21570674,101990.0,101980.0,0.0154]
[1747105752368,0.21570674,101990.0,101980.0,0.02994085]
[1747105752804,0.21570674,101990.0,101980.0,0.01454085]
[1747105753051,0.20592253,101980.0,101970.0,0.2145]
[1747105753461,0.20592253,101980.0,101970.0,0.22904085]
[1747105754376,0.20592253,101980.0,101970.0,0.21468734]
[1747105754587,0.47605153,101980.0,101970.0,0.01668734]
[1747105755138,0.50082744,101980.0,101970.0,0.00214649]
[1747105755334,0.50082744,101980.0,101970.0,0.00514649]
[1747105755547,0.50182744,101980.0,101970.0,0.00514649]
[1747105755762,0.50182744,101980.0,101970.0,0.00114649]
[1747105756010,0.22412253,101980.0,101970.0,0.00614649]
[1747105756211,0.02061081,101980.0,101970.0,0.03118734]
[1747105756409,0.04022201,101980.0,101970.0,0.05784443]
[1747105756607,0.05602698,101980.0,101970.0,0.05884443]
[1747105757162,0.04622201,101980.0,101970.0,0.01568734]
[1747105757549,0.04622201,101980.0,101970.0,0.21182345]
[1747105759438,0.03641675,101980.0,101970.0,0.21182345]
[1747105760108,0.22272827,101980.0,101970.0,0.01568734]
[1747105760316,0.48335172,101980.0,101970.0,0.01568734]
[1747105760618,0.48335172,101980.0,101970.0,0.21182345]
[1747105760796,0.22942272,101980.0,101970.0,0.21182345]
[1747105761005,0.24572272,101980.0,101970.0,0.21182345]
[1747105761592,0.22942272,101980.0,101970.0,0.21182345]
[1747105761801,0.22942272,101980.0,101970.0,0.01568734]
[1747105761985,0.22942272,101980.0,101970.0,0.21182345]
[1747105763260,0.0235,101980.0,101970.0,0.21182345]
[1747105763482,0.23922827,101980.0,101970.0,0.21182345]
[1747105764328,0.23922827,101980.0,101970.0,0.01568734]
[1747105766456,0.23922827,101980.0,101970.0,0.21182345]
[1747105767056,0.23922827,101980.0,101970.0,0.01568734]
[1747105767278,0.49315727,101980.0,101970.0,0.01568734]
[1747105767494,0.50915727,101980.0,101970.0,0.01568734]
[1747105768622,0.49315727,101980.0,101970.0,0.01568734]
[1747105769311,0.22272827,101980.0,101970.0,0.22682345]
[1747105770744,0.02661081,101980.0,101970.0,0.24643676]
[1747105770946,0.01680507,101980.0,101970.0,0.28254931]
[1747105771176,0.01680517,101980.0,101970.0,0.28254931]
[1747105771823,0.007,101980.0,101970.0,0.83041261]
[1747105772057,0.007,101980.0,101970.0,1.52019591]
[1747105772268,0.007,101980.0,101970.0,1.92019591]
[1747105772494,0.007,101980.0,101970.0,1.66626691]
[1747105772730,0.007,101980.0,101970.0,1.46818691]
[1747105772948,0.0294129,101990.0,101970.0,1.46818691]
[1747105772949,0.0294129,101990.0,101980.0,0.27157438]
[1747105773202,0.22551132,101990.0,101980.0,0.05584669]
[1747105773413,0.22551132,101990.0,101980.0,0.27157496]
[1747105773414,0.2353162,101990.0,101980.0,0.27157496]
[1747105773845,0.2255119,101990.0,101980.0,0.04604085]
[1747105774092,0.2255119,101990.0,101980.0,0.02954085]
[1747105774093,0.21570731,101990.0,101980.0,0.02954085]
[1747105774314,0.21570731,101990.0,101980.0,0.03554085]
[1747105774538,0.21670731,101990.0,101980.0,0.03554085]
[1747105774997,0.21670731,101990.0,101980.0,0.03654085]
[1747105775452,0.21670731,101990.0,101980.0,0.03554085]
[1747105775666,0.21570731,101990.0,101980.0,0.02954085]
[1747105775897,0.21770731,101990.0,101980.0,0.03454085]
[1747105776550,0.21770731,101990.0,101980.0,0.08595021]
[1747105776759,0.21770731,101990.0,101980.0,0.30837283]
[1747105777349,0.21770731,101990.0,101980.0,0.06084669]
[1747105777551,0.20790253,101990.0,101980.0,0.05415243]
[1747105777762,0.20790253,101990.0,101980.0,0.06975243]
[1747105777921,0.20790253,101990.0,101980.0,0.26586931]
[1747105779024,0.20790253,101990.0,101980.0,0.05994669]
[1747105779351,0.20790253,101990.0,101980.0,0.37152906]
[1747105779586,0.21770712,101990.0,101980.0,0.37152906]
[1747105780088,0.20790253,101990.0,101980.0,0.36172361]
[1747105780273,0.20790253,101990.0,101980.0,0.39114026]
[1747105780906,0.20790253,101990.0,101980.0,0.29528596]
[1747105781322,0.20790253,101990.0,101980.0,0.29528548]
[1747105781539,0.002,101990.0,101980.0,0.29528491]
[1747105781742,0.02160899,101990.0,101980.0,0.29528491]
[1747105781966,0.01180411,101990.0,101980.0,0.39113921]
[1747105782195,0.01180401,101990.0,101980.0,0.48699351]
[1747105782652,0.02160831,101990.0,101980.0,0.48699351]
[1747105782873,0.02160821,101990.0,101980.0,0.48699351]
[1747105783973,0.0412172,101990.0,101980.0,0.48699351]
[1747105784194,0.0412172,101990.0,101980.0,0.88699351]
[1747105784647,0.03141261,101990.0,101980.0,0.88699351]
[1747105784858,0.02160821,101990.0,101980.0,0.88699351]
[1747105785088,0.03141261,101990.0,101980.0,0.88699351]
[1747105785299,0.02160821,101990.0,101980.0,0.88699351]
[1747105785510,0.0314127,101990.0,101980.0,0.88699351]
[1747105785712,0.03141261,101990.0,101980.0,0.88699351]
[1747105786119,0.0314127,101990.0,101980.0,0.88699351]
[1747105787981,0.04121739,101990.0,101980.0,0.88699351]
[1747105788648,0.0314127,101990.0,101980.0,0.88699351]
[1747105789063,0.04121739,101990.0,101980.0,0.88699351]
[1747105792654,0.05102217,101990.0,101980.0,0.88699351]
[1747105794590,0.05102217,101990.0,101980.0,1.08495351]
[1747105794819,0.05102304,101990.0,101980.0,1.08495351]
[1747105796598,0.23731649,101990.0,101980.0,1.07514834]
[1747105797033,0.03141396,101990.0,101980.0,1.08495351]
[1747105797491,0.04121884,101990.0,101980.0,1.08495351]
[1747105798809,0.23731649,101990.0,101980.0,1.07514834]
[1747105799480,0.227512,101990.0,101980.0,1.03993753]
[1747105799717,0.227512,101990.0,101980.0,1.04974298]
[1747105799918,0.227512,101990.0,101980.0,1.06624298]
[1747105800122,0.227512,101990.0,101980.0,1.05954834]
[1747105800514,0.227512,101990.0,101980.0,0.56369404]
[1747105801063,0.03141435,101990.0,101980.0,0.5734993]
[1747105801287,0.03141435,101990.0,101980.0,0.57349882]
[1747105801531,0.03141435,101990.0,101980.0,0.58859882]
[1747105801532,0.0118044,101990.0,101980.0,0.58859882]
[1747105801747,0.0314131,101990.0,101980.0,0.58859882]
[1747105801961,0.04121779,101990.0,101980.0,0.60282913]
[1747105802388,0.05102257,101990.0,101980.0,0.60282913]
[1747105802833,0.04121779,101990.0,101980.0,0.60282913]
[1747105803032,0.02160851,101990.0,101980.0,0.60282913]
[1747105803255,0.04121779,101990.0,101980.0,0.60282913]
[1747105803737,0.0314131,101990.0,101980.0,0.60282913]
[1747105803966,0.002,101990.0,101980.0,0.94282913]
[1747105804204,0.002,101990.0,101980.0,1.19675813]
[1747105804627,0.002,101990.0,101980.0,1.59675813]
[1747105805550,0.30513187,102030.0,102020.0,0.03414407]
[1747105805551,0.10310564,102030.0,102020.0,0.03414407]
[1747105805765,0.29944005,102050.0,102030.0,0.00980036]
[1747105805974,0.28408589,102050.0,102040.0,0.22034239]
[1747105806202,0.293885,102050.0,102040.0,0.23014218]
[1747105806408,0.293885,102050.0,102040.0,0.22034239]
[1747105806618,0.293885,102050.0,102040.0,0.32491408]
[1747105806619,0.30303225,102050.0,102040.0,0.32491408]
[1747105806843,0.10753751,102050.0,102040.0,0.33471387]
[1747105807103,0.11733643,102050.0,102040.0,0.34451356]
[1747105807357,0.30352025,102050.0,102040.0,0.34451356]
[1747105807582,0.29557417,102050.0,102040.0,0.33571387]
[1747105808475,0.21726947,102050.0,102040.0,0.33571387]
[1747105808705,0.21726947,102050.0,102040.0,0.34551346]
[1747105808936,0.22426947,102050.0,102040.0,0.34651346]
[1747105809193,0.05768387,102050.0,102040.0,0.37181296]
[1747105809426,0.2438676,102050.0,102040.0,0.33671387]
[1747105810364,0.2438676,102050.0,102040.0,0.34651356]
[1747105810594,0.03808613,102050.0,102040.0,0.35631257]
[1747105810795,0.04788524,102050.0,102040.0,0.35631257]
[1747105811059,0.04788524,102050.0,102040.0,0.34651317]
[1747105811296,0.04788524,102050.0,102040.0,0.36201317]
[1747105811443,0.03808613,102050.0,102040.0,0.56953257]
[1747105811674,0.0576831,102050.0,102040.0,0.56953257]
[1747105811868,0.05768291,102050.0,102040.0,0.56953257]
[1747105812073,0.05768291,102050.0,102040.0,0.55973317]
[1747105812276,0.05768291,102050.0,102040.0,0.56953257]
[1747105812801,0.05768368,102050.0,102040.0,0.55973317]
[1747105813021,0.05768368,102050.0,102040.0,0.56953267]
[1747105813436,0.24386741,102050.0,102040.0,0.54013389]
[1747105814414,0.24386741,102050.0,102040.0,0.34241389]
[1747105814603,0.24386741,102050.0,102040.0,0.22406083]
[1747105814604,0.22426966,102050.0,102040.0,0.22406083]
[1747105815133,0.22426966,102050.0,102040.0,0.42986218]
[1747105815672,0.22426966,102050.0,102040.0,0.42006239]
[1747105816122,0.22426966,102050.0,102040.0,0.42986227]
[1747105816333,0.22426966,102050.0,102040.0,0.45616196]
[1747105816504,0.22426966,102050.0,102040.0,0.54221657]
[1747105817349,0.21447055,102050.0,102040.0,0.54221657]
[1747105821911,0.04788476,102050.0,102040.0,0.56181576]
[1747105822103,0.05768387,102050.0,102040.0,0.56181576]
[1747105822613,0.01848819,102050.0,102040.0,0.93639846]
[1747105823034,0.04788341,102050.0,102040.0,0.93639846]
[1747105823268,0.05768224,102050.0,102040.0,1.08246946]
[1747105823477,0.03688341,102050.0,102040.0,1.08146946]
[1747105823703,0.03488341,102050.0,102040.0,1.08046946]
[1747105824064,0.03688341,102050.0,102040.0,1.08046946]
[1747105824323,0.02708478,102050.0,102040.0,1.42046946]
[1747105825171,0.03688332,102050.0,102040.0,1.42046946]
[1747105825386,0.02708478,102050.0,102040.0,1.42046946]
[1747105826041,0.03688332,102050.0,102040.0,1.42046946]
[1747105826282,0.02708478,102050.0,102040.0,1.42046946]
[1747105826955,0.00748819,102050.0,102040.0,1.67439846]
[1747105827417,0.01728644,102050.0,102040.0,1.22274946]
[1747105827642,0.02708488,102050.0,102040.0,1.61798946]
[1747105828582,0.01728644,102050.0,102040.0,1.61798946]
[1747105828794,0.02708488,102050.0,102040.0,1.61798946]
[1747105831911,0.00748819,102050.0,102040.0,1.87191846]
[1747105833590,0.00248819,102050.0,102040.0,1.87191846]
[1747105834344,0.00048819,102050.0,102040.0,1.87191846]
[1747105834752,0.00048819,102050.0,102040.0,1.87491846]
[1747105834958,0.00148819,102050.0,102040.0,1.87491846]
[1747105836055,0.00148819,102050.0,102040.0,2.29839846]
[1747105836427,0.00148819,102050.0,102040.0,2.31297694]
[1747105837884,0.00148819,102050.0,102040.0,2.30997694]
[1747105838305,0.00148819,102050.0,102040.0,2.31397694]
[1747105838538,0.00048819,102050.0,102040.0,2.31397694]
[1747105839103,0.00048819,102050.0,102040.0,2.31497694]
[1747105852850,0.00048819,102050.0,102040.0,2.32497694]
[1747105853482,0.00048819,102050.0,102040.0,2.56992181]
[1747105853674,0.00048819,102050.0,102040.0,2.94642181]
[1747105853916,0.00048819,102050.0,102040.0,2.95642181]
[1747105854128,0.00048819,102050.0,102040.0,2.95542181]
[1747105854310,0.00048819,102050.0,102040.0,2.95342181]
[1747105854546,0.08743991,102090.0,102080.0,0.57985316]
[1747105854739,0.08743991,102090.0,102080.0,1.33203613]
[1747105854740,0.08758636,102090.0,102080.0,1.33203613]
[1747105855428,0.00014645,102090.0,102080.0,1.81902703]
[1747105856094,0.00014645,102090.0,102080.0,1.83402703]
[1747105856309,0.00414645,102090.0,102080.0,1.83402703]
[1747105856758,0.01114645,102090.0,102080.0,1.83402703]
[1747105857179,0.00414645,102090.0,102080.0,1.83402703]
[1747105857396,0.00014645,102090.0,102080.0,1.81902703]
[1747105857617,0.00214645,102090.0,102080.0,1.81902703]
[1747105861092,0.00214645,102090.0,102080.0,2.25824703]
[1747105861318,0.00214645,102090.0,102080.0,2.51152922]
[1747105861542,0.00214645,102090.0,102080.0,2.52152922]
[1747105861766,0.00214645,102090.0,102080.0,2.54553013]
[1747105862234,0.00214645,102090.0,102080.0,2.56652836]
[1747105862458,0.00014645,102090.0,102080.0,2.56652836]
[1747105862642,0.0053977,102110.0,102100.0,0.27070902]
[1747105862845,0.11942078,102130.0,102120.0,0.22522405]
[1747105863056,0.10406712,102130.0,102120.0,0.98330139]
[1747105863270,0.09495104,102130.0,102120.0,0.73997182]
[1747105863478,0.09495104,102130.0,102120.0,1.47997182]
[1747105863624,0.10474171,102130.0,102120.0,1.47997182]
[1747105863821,0.07845104,102130.0,102120.0,1.82910831]
[1747105864043,0.07845104,102130.0,102120.0,1.85500089]
[1747105864745,0.11353267,102130.0,102120.0,1.6017187]
[1747105864922,0.12963257,102130.0,102120.0,1.57582612]
[1747105865383,0.35104362,102130.0,102120.0,1.4701401]
[1747105865593,0.35104362,102130.0,102120.0,1.48972384]
[1747105865804,0.34825295,102130.0,102120.0,1.4799324]
[1747105866241,0.26994825,102130.0,102120.0,1.48972441]
[1747105866460,0.23794022,102120.0,102110.0,0.59998056]
[1747105866676,0.24773233,102120.0,102110.0,1.04562802]
[1747105867165,0.24773233,102120.0,102110.0,0.86817406]
[1747105867582,0.24773233,102120.0,102110.0,0.0958543]
[1747105867764,0.24795363,102110.0,102100.0,0.81271596]
[1747105867997,0.24795363,102110.0,102100.0,1.25836409]
[1747105868228,0.24795363,102110.0,102100.0,1.36875924]
[1747105868431,0.24795363,102110.0,102100.0,0.9883471]
[1747105868859,0.06187901,102110.0,102100.0,0.99814074]
[1747105869065,0.06287901,102110.0,102100.0,0.99814074]
[1747105869496,0.08246563,102110.0,102100.0,0.99814074]
[1747105870390,0.25874698,102110.0,102100.0,0.86314996]
[1747105871039,0.25874698,102110.0,102100.0,0.76729566]
[1747105871257,0.24895382,102110.0,102100.0,0.75750154]
[1747105871468,0.24895382,102110.0,102100.0,0.7770895]
[1747105872344,0.06287881,102110.0,102100.0,0.78688314]
[1747105872560,0.06287881,102110.0,102100.0,0.88273744]
[1747105872950,0.07267207,102110.0,102100.0,0.88273744]
[1747105873621,0.04647863,102110.0,102100.0,0.88273744]
[1747105874043,0.05627179,102110.0,102100.0,0.88273744]
[1747105874264,0.07187179,102110.0,102100.0,0.88273744]
[1747105875668,0.07187179,102110.0,102100.0,0.89249181]
[1747105876235,0.08166505,102110.0,102100.0,0.89249181]
[1747105877892,0.25794698,102110.0,102100.0,0.75750154]
[1747105878092,0.50143601,102110.0,102100.0,0.01454085]
[1747105878297,0.51052839,102110.0,102100.0,0.01454085]
[1747105878709,0.03588911,102090.0,102080.0,1.32490312]
[1747105878918,0.061184,102090.0,102080.0,1.76075742]
[1747105879614,0.05138911,102090.0,102080.0,1.77529827]
[1747105879773,0.20569248,102100.0,102090.0,0.23003649]
[1747105879774,0.25736864,102100.0,102090.0,0.23003649]
[1747105879968,0.05168795,102100.0,102090.0,0.2523687]
[1747105880177,0.25736855,102100.0,102090.0,0.2523687]
[1747105880378,0.26648219,102100.0,102090.0,0.2621634]
[1747105881223,0.26648219,102100.0,102090.0,0.2641634]
[1747105881725,0.26648219,102100.0,102090.0,0.26516349]
[1747105881927,0.25668836,102100.0,102090.0,0.2553687]
[1747105882167,0.25668836,102100.0,102090.0,0.25436889]
[1747105882400,0.24689424,102100.0,102090.0,0.25436889]
[1747105882632,0.24689424,102100.0,102090.0,0.23203668]
[1747105883895,0.24689424,102100.0,102090.0,0.24183147]
[1747105884116,0.23059424,102100.0,102090.0,0.23203668]
[1747105884335,0.24639424,102100.0,102090.0,0.23203668]
[1747105884574,0.24639424,102100.0,102090.0,0.32789098]
[1747105885032,0.24639424,102100.0,102090.0,0.34748076]
[1747105885484,0.24639424,102100.0,102090.0,0.34748086]
[1747105885705,0.23059424,102100.0,102090.0,0.34748086]
[1747105885933,0.23059424,102100.0,102090.0,0.33768597]
[1747105886132,0.24559424,102100.0,102090.0,0.33768597]
[1747105886404,0.24559424,102100.0,102090.0,0.24183167]
[1747105886851,0.49887643,102100.0,102090.0,0.01654085]
[1747105887902,0.49887643,102100.0,102090.0,0.01454085]
[1747105888289,0.50187643,102100.0,102090.0,0.01454085]
[1747105891480,0.50187643,102100.0,102090.0,0.02433612]
[1747105891628,0.24338817,102100.0,102090.0,0.2995663]
[1747105892259,0.24338817,102100.0,102090.0,0.30936109]
[1747105892260,0.23427453,102100.0,102090.0,0.30936109]
[1747105892497,0.23427453,102100.0,102090.0,0.2995663]
[1747105893112,0.01279364,102100.0,102090.0,0.43101009]
[1747105893320,0.02258719,102100.0,102090.0,0.43101009]
[1747105893500,0.003,102100.0,102090.0,0.98301009]
[1747105893705,0.003,102100.0,102090.0,1.63629228]
[1747105893950,0.003,102100.0,102090.0,1.38301009]
[1747105895048,0.001,102100.0,102090.0,1.38301009]
[1747105895454,0.04829215,102110.0,102100.0,0.24126817]
[1747105895617,0.03849908,102110.0,102100.0,0.33712247]
[1747105895824,0.02870611,102110.0,102100.0,0.33712247]
[1747105896028,0.01891323,102110.0,102100.0,0.33712247]
[1747105896397,0.02870611,102110.0,102100.0,0.33712247]
[1747105896544,0.02870601,102110.0,102100.0,0.33712247]
[1747105896938,0.02970601,102110.0,102100.0,0.33712247]
[1747105897164,0.03949908,102110.0,102100.0,0.33712247]